bitfinex/quotes_SOLUSD_20230103
["timestamp","ask_amount","ask_price","bid_price","bid_amount"]
[1672724564750,354.79723102,11.776,11.76,63.86]
[1672724564955,5.93,11.77,11.76,110.7863]
[1672724565834,30.0,11.77,11.76,110.7863]
[1672724566257,63.8,11.771,11.76,110.7863]
[1672724566562,63.53845328,11.771,11.761,30.0]
[1672724567822,30.0,11.772,11.761,30.0]
[1672724568033,63.79,11.773,11.761,141.0137]
[1672724568356,50.0,11.772,11.761,140.5137]
[1672724568566,20.0,11.772,11.761,140.5137]
[1672724568978,50.0,11.772,11.761,140.5137]
[1672724569188,63.8,11.771,11.761,140.5137]
[1672724569414,50.0,11.772,11.761,140.5137]
[1672724569726,20.0,11.772,11.761,140.5137]
[1672724570353,20.0,11.772,11.761,111.0137]
[1672724570564,50.0,11.772,11.761,111.0137]
[1672724570966,20.0,11.772,11.761,111.0137]
[1672724571182,20.0,11.772,11.762,30.0]
[1672724572030,50.0,11.774,11.762,30.0]
[1672724572336,20.0,11.774,11.762,30.0]
[1672724573103,50.0,11.774,11.762,30.0]
[1672724573301,113.78,11.774,11.762,30.0]
[1672724573495,50.0,11.774,11.762,30.0]
[1672724573705,50.0,11.774,11.761,141.0137]
[1672724573917,50.0,11.774,11.762,30.0]
[1672724574130,50.0,11.774,11.761,111.0137]
[1672724574351,93.79,11.773,11.761,111.0137]
[1672724574668,30.0,11.771,11.761,111.0137]
[1672724575386,29.5,11.771,11.761,111.0137]
[1672724576013,30.0,11.769,11.761,111.0137]
[1672724579084,342.0,11.769,11.761,111.0137]
[1672724579597,312.0,11.769,11.761,111.0137]
[1672724581068,20.0,11.772,11.762,30.0]
[1672724581280,20.0,11.773,11.762,30.0]
[1672724582319,63.78,11.774,11.762,30.0]
[1672724582545,5.9,11.78,11.764,30.0]
[1672724583056,5.9,11.78,11.765,63.83]
[1672724583258,5.9,11.78,11.766,30.0]
[1672724583472,5.9,11.78,11.767,158.0431]
[1672724583683,5.9,11.78,11.768,30.0]
[1672724584015,312.0,11.781,11.768,188.0431]
[1672724584440,312.0,11.781,11.77,30.0]
[1672724585179,110.7081,11.783,11.77,30.0]
[1672724585367,30.0,11.783,11.772,30.0]
[1672724585577,30.0,11.783,11.771,107.5623]
[1672724586638,20.0,11.782,11.771,107.5623]
[1672724587381,160.52613102,11.786,11.771,107.5623]
[1672724587382,194.24613102,11.786,11.771,107.5623]
[1672724587567,127.75309,11.787,11.772,30.0]
[1672724587909,64.04309,11.787,11.774,30.0]
[1672724588219,312.0,11.786,11.774,30.0]
[1672724588428,312.0,11.786,11.773,48.2993]
[1672724588645,30.0,11.785,11.773,48.2993]
[1672724591047,30.0,11.785,11.773,156.5599]
[1672724592928,34.04309,11.787,11.773,156.5599]
[1672724593145,30.0,11.787,11.774,184.3273]
[1672724593779,30.0,11.787,11.775,108.2606]
[1672724593780,64.035048,11.787,11.775,108.2606]
[1672724594314,63.72,11.786,11.776,30.0]
[1672724594524,64.035048,11.787,11.775,155.6254]
[1672724594926,64.035048,11.787,11.776,30.0]
[1672724595452,34.035048,11.787,11.776,191.6913]
[1672724595999,34.035048,11.787,11.778,30.0]
[1672724596192,8.39931,11.786,11.778,30.0]
[1672724597236,8.39931,11.786,11.777,63.77]
[1672724597446,8.39931,11.786,11.776,161.6913]
[1672724598298,8.39931,11.786,11.777,30.0]
[1672724600624,1.07331,11.786,11.78,5.93]
[1672724600838,23.74,11.81,11.782,30.0]
[1672724600839,63.65,11.799,11.782,30.0]
[1672724601039,8.8411212,11.801,11.788,12.71546793]
[1672724601355,8.8411212,11.801,11.783,130.6204]
[1672724601356,8.8411212,11.801,11.789,63.7]
[1672724601571,8.8411212,11.801,11.784,272.9089]
[1672724601762,8.8411212,11.801,11.784,242.9089]
[1672724601971,8.3411212,11.801,11.784,242.9089]
[1672724602183,30.0,11.799,11.784,179.1789]
[1672724603039,30.0,11.799,11.785,63.72]
[1672724603237,30.0,11.799,11.784,179.1789]
[1672724603654,342.0,11.799,11.784,179.1789]
[1672724605127,30.0,11.797,11.784,179.1789]
[1672724605334,30.0,11.797,11.785,165.1641]
[1672724606698,30.0,11.797,11.781,63.75]
[1672724606915,30.0,11.795,11.778,162.5656]
[1672724607142,83.67,11.794,11.779,162.5656]
[1672724607455,42.79723102,11.793,11.78,162.5656]
[1672724607670,5.87,11.79,11.78,162.5656]
[1672724607862,63.7,11.789,11.78,162.5656]
[1672724608283,30.0,11.788,11.78,162.5656]
[1672724608611,63.71,11.787,11.78,162.5656]
[1672724608819,30.0,11.786,11.78,162.5656]
[1672724609021,63.69,11.791,11.78,162.5656]
[1672724609221,63.69,11.792,11.78,162.5656]
[1672724609450,119.7325,11.793,11.781,30.0]
[1672724609643,63.69,11.792,11.781,30.0]
[1672724609870,30.0,11.792,11.78,162.5656]
[1672724610065,30.0,11.792,11.781,30.0]
[1672724610273,63.69,11.791,11.78,162.5656]
[1672724610480,30.0,11.79,11.78,162.5656]
[1672724611544,30.0,11.79,11.78,157.5656]
[1672724611755,342.0,11.79,11.78,157.5656]
[1672724611981,312.0,11.79,11.78,157.5656]
[1672724612513,312.0,11.79,11.781,20.0]
[1672724612705,312.0,11.79,11.78,163.4856]
[1672724612916,312.0,11.79,11.781,30.0]
[1672724613436,111.0152,11.794,11.781,30.0]
[1672724613667,20.0,11.793,11.781,30.0]
[1672724614179,141.8668,11.795,11.781,30.0]
[1672724614180,20.0,11.794,11.781,30.0]
[1672724614810,30.0,11.793,11.78,163.4656]
[1672724615023,63.69,11.792,11.78,157.5656]
[1672724615236,30.0,11.791,11.78,157.5656]
[1672724615435,42.73723102,11.791,11.78,157.5656]
[1672724616510,354.73723102,11.791,11.78,157.5656]
[1672724617854,12.79723102,11.79,11.78,157.5656]
[1672724618059,12.79723102,11.79,11.781,20.0]
[1672724618275,30.0,11.798,11.782,30.0]
[1672724618591,42.79723102,11.797,11.782,157.1586]
[1672724618807,30.0,11.795,11.782,157.1586]
[1672724619030,30.0,11.795,11.783,47.0212]
[1672724619342,30.0,11.795,11.783,110.7512]
[1672724619550,30.0,11.795,11.783,47.0212]
[1672724619754,30.0,11.795,11.779,23.5576]
[1672724619755,30.0,11.793,11.779,23.5576]
[1672724619951,30.0,11.798,11.779,23.5576]
[1672724619952,8.3411212,11.801,11.782,12.79723102]
[1672724620168,8.3411212,11.801,11.784,30.0]
[1672724620379,8.3411212,11.801,11.785,63.72]
[1672724620701,8.3411212,11.801,11.786,30.0]
[1672724621024,8.3411212,11.801,11.788,30.0]
[1672724621335,8.3411212,11.801,11.789,63.7]
[1672724621547,8.3411212,11.801,11.788,30.0]
[1672724622173,8.3411212,11.801,11.791,30.0]
[1672724622499,8.3411212,11.801,11.793,30.0]
[1672724622711,8.3411212,11.801,11.794,63.67]
[1672724623336,8.3411212,11.801,11.795,30.0]
[1672724623740,8.3411212,11.801,11.794,63.67]
[1672724624262,8.3411212,11.801,11.792,63.69]
[1672724624477,8.3411212,11.801,11.791,63.69]
[1672724624901,8.3411212,11.801,11.785,63.72]
[1672724625320,30.0,11.8,11.785,63.72]
[1672724626182,35.9,11.8,11.785,63.72]
[1672724626369,35.9,11.8,11.785,30.0]
[1672724626581,35.9,11.8,11.786,63.72]
[1672724627342,35.9,11.8,11.785,30.0]
[1672724627859,35.9,11.8,11.786,63.72]
[1672724628072,5.9,11.8,11.786,63.72]
[1672724628265,8.3411212,11.801,11.791,30.0]
[1672724628470,8.3411212,11.801,11.792,63.69]
[1672724628702,8.3411212,11.801,11.793,30.0]
[1672724629320,8.3411212,11.801,11.794,63.67]
[1672724630370,8.3411212,11.801,11.792,63.69]
[1672724631110,8.3411212,11.801,11.793,30.0]
[1672724631535,8.3411212,11.801,11.794,63.67]
[1672724631962,8.3411212,11.801,11.792,63.69]
[1672724632152,8.3411212,11.801,11.793,30.0]
[1672724632361,8.3411212,11.801,11.794,63.67]
[1672724632594,8.3411212,11.801,11.795,30.0]
[1672724632805,8.3411212,11.801,11.794,63.67]
[1672724633226,8.3411212,11.801,11.793,30.0]
[1672724633531,8.3411212,11.801,11.794,63.67]
[1672724633741,8.3411212,11.801,11.792,63.69]
[1672724634481,8.3411212,11.801,11.791,63.69]
[1672724634681,8.3411212,11.801,11.792,30.0]
[1672724634898,8.3411212,11.801,11.793,63.68]
[1672724635634,8.2811212,11.801,11.793,63.68]
[1672724636059,8.2811212,11.801,11.792,30.0]
[1672724636467,8.2811212,11.801,11.793,63.68]
[1672724637010,8.2811212,11.801,11.792,30.0]
[1672724637221,8.2811212,11.801,11.791,63.69]
[1672724638357,8.2811212,11.801,11.777,109.71367903]
[1672724638358,30.0,11.799,11.776,949.05830108]
[1672724638575,83.65,11.798,11.776,949.05830108]
[1672724638785,30.0,11.797,11.777,30.0]
[1672724639112,30.0,11.795,11.777,93.77]
[1672724639317,30.0,11.793,11.777,93.77]
[1672724639722,30.0,11.793,11.777,63.77]
[1672724639933,30.0,11.793,11.776,949.05830108]
[1672724640168,30.0,11.791,11.776,949.05830108]
[1672724640360,30.0,11.791,11.777,30.0]
[1672724640572,30.0,11.791,11.777,93.77]
[1672724640998,93.69,11.791,11.777,30.0]
[1672724641214,30.0,11.791,11.772,30.0]
[1672724641422,42.79723102,11.791,11.773,63.79]
[1672724641611,42.79723102,11.791,11.774,30.0]
[1672724641824,5.88,11.79,11.773,63.79]
[1672724642042,30.0,11.788,11.773,63.79]
[1672724642251,29.93328122,11.788,11.774,30.0]
[1672724642468,115.36239063,11.789,11.774,30.0]
[1672724642678,63.7,11.79,11.776,30.0]
[1672724642879,30.0,11.789,11.776,30.0]
[1672724643417,30.0,11.789,11.775,63.78]
[1672724643829,30.0,11.789,11.776,30.0]
[1672724644259,405.69,11.791,11.776,24.5]
[1672724644487,30.0,11.791,11.776,24.5]
[1672724644680,30.0,11.791,11.778,30.0]
[1672724645001,72.7555364,11.795,11.779,63.76]
[1672724645203,51.66239063,11.795,11.78,55.88]
[1672724645414,42.79723102,11.799,11.782,30.0]
[1672724645617,42.79723102,11.799,11.783,63.73]
[1672724645834,42.79723102,11.799,11.784,30.0]
[1672724646260,30.0,11.799,11.786,30.0]
[1672724646588,30.0,11.799,11.785,63.72]
[1672724646776,30.0,11.799,11.785,30.0]
[1672724646995,71.0745,11.8,11.785,30.0]
[1672724647182,71.0745,11.8,11.786,63.72]
[1672724647397,24.205,11.8,11.786,63.72]
[1672724647608,30.0,11.799,11.786,63.72]
[1672724648267,30.0,11.799,11.785,63.72]
[1672724648268,94.15880974,11.799,11.785,63.72]
[1672724648678,30.0,11.799,11.785,63.72]
[1672724648867,30.0,11.799,11.786,30.0]
[1672724649080,30.0,11.799,11.787,63.71]
[1672724650458,30.0,11.799,11.785,115.0299]
[1672724650459,30.0,11.799,11.786,63.72]
[1672724652676,30.0,11.799,11.785,115.0299]
[1672724653384,30.0,11.799,11.786,63.72]
[1672724656342,30.0,11.799,11.785,115.0299]
[1672724657499,30.0,11.799,11.786,63.72]
[1672724658232,342.0,11.799,11.786,63.72]
[1672724660437,342.0,11.799,11.786,172.23]
[1672724661582,63.65,11.798,11.786,111.01]
[1672724661787,30.0,11.797,11.786,111.01]
[1672724662010,30.0,11.795,11.786,111.01]
[1672724664871,76.46723102,11.794,11.775,63.78]
[1672724665182,76.46723102,11.794,11.77,5.86]
[1672724665183,5.9,11.79,11.774,48.909]
[1672724665376,5.9,11.79,11.774,112.689]
[1672724665817,5.9,11.79,11.774,111.689]
[1672724665818,30.0,11.789,11.774,111.689]
[1672724666554,146.5163,11.789,11.774,111.689]
[1672724667392,159.31353102,11.789,11.774,111.689]
[1672724667600,146.5163,11.789,11.774,111.689]
[1672724667806,471.31353102,11.789,11.774,111.689]
[1672724668132,30.0,11.787,11.774,47.909]
[1672724668650,30.0,11.785,11.774,47.909]
[1672724669073,30.0,11.785,11.774,46.909]
[1672724669914,42.79723102,11.785,11.774,46.909]
[1672724670547,111.40326772,11.785,11.774,46.909]
[1672724671376,5.9,11.78,11.769,63.81]
[1672724671593,5.9,11.78,11.764,116.2058]
[1672724671913,30.0,11.778,11.765,63.83]
[1672724672624,98.6060367,11.778,11.764,116.2058]
[1672724672832,111.40326772,11.778,11.765,63.83]
[1672724673173,63.77,11.777,11.764,116.2058]
[1672724673365,30.0,11.776,11.764,116.2058]
[1672724673571,141.7181473,11.776,11.764,116.2058]
[1672724673799,111.7181473,11.775,11.764,116.2058]
[1672724674003,5.9,11.77,11.756,63.88]
[1672724674216,5.9,11.77,11.756,246.9305]
[1672724674644,30.0,11.769,11.756,246.9305]
[1672724674956,68.6060367,11.768,11.756,246.9305]
[1672724675165,30.0,11.767,11.756,136.1817]
[1672724675584,98.6060367,11.767,11.756,136.1817]
[1672724676105,30.0,11.767,11.756,136.1817]
[1672724676322,30.0,11.767,11.756,72.3017]
[1672724676526,30.0,11.769,11.756,72.3017]
[1672724678004,30.0,11.769,11.757,30.0]
[1672724678220,142.5634,11.771,11.757,30.0]
[1672724678426,142.5634,11.771,11.757,93.88]
[1672724678641,142.5634,11.771,11.757,63.88]
[1672724678855,206.3634,11.771,11.757,30.0]
[1672724679067,142.5634,11.771,11.757,30.0]
[1672724679684,142.5634,11.771,11.756,72.3017]
[1672724680328,142.5634,11.771,11.757,30.0]
[1672724680523,142.5634,11.771,11.757,93.88]
[1672724680854,98.6060367,11.776,11.757,93.88]
[1672724680855,30.0,11.776,11.76,5.87]
[1672724681044,140.7742,11.776,11.761,83.85]
[1672724681259,140.7742,11.776,11.762,30.0]
[1672724682424,140.7742,11.776,11.762,29.5]
[1672724682741,30.0,11.775,11.762,29.5]
[1672724682951,30.0,11.775,11.761,20.0]
[1672724683165,42.79723102,11.775,11.761,20.0]
[1672724683571,354.79723102,11.774,11.76,47.9479]
[1672724683784,5.92,11.77,11.755,63.89]
[1672724684419,5.92,11.77,11.754,227.6863]
[1672724684647,144.41,11.77,11.755,30.0]
[1672724684854,30.0,11.769,11.754,227.6863]
[1672724685495,138.49,11.769,11.754,227.6863]
[1672724685707,151.28723102,11.769,11.754,227.6863]
[1672724685915,138.49,11.769,11.754,227.6863]
[1672724686127,138.49,11.769,11.755,30.0]
[1672724686964,138.49,11.769,11.754,227.6863]
[1672724687164,138.49,11.769,11.755,30.0]
[1672724687914,108.49,11.769,11.757,30.0]
[1672724688444,30.0,11.768,11.756,63.88]
[1672724689891,30.0,11.768,11.756,30.0]
[1672724690335,30.0,11.768,11.755,109.231]
[1672724690530,145.5617,11.768,11.755,109.231]
[1672724690742,145.5617,11.768,11.756,30.0]
[1672724690942,145.5617,11.768,11.755,109.231]
[1672724693170,115.5617,11.768,11.756,30.0]
[1672724693373,115.5617,11.768,11.758,30.0]
[1672724693701,30.0,11.767,11.756,93.88]
[1672724694095,30.0,11.767,11.756,63.88]
[1672724694410,342.0,11.767,11.755,109.231]
[1672724694614,30.0,11.765,11.755,109.231]
[1672724694830,63.83,11.766,11.765,0.00224042]
[1672724695049,20.0,11.766,11.765,0.00224042]
[1672724695369,30.0,11.765,11.745,30.0]
[1672724695562,83.84,11.764,11.745,93.94]
[1672724695772,30.0,11.763,11.745,63.94]
[1672724696003,63.85,11.762,11.75,5.89]
[1672724696216,66.7273,11.764,11.75,5.89]
[1672724696217,130.5673,11.764,11.75,5.89]
[1672724696525,30.0,11.763,11.75,5.89]
[1672724697140,30.0,11.763,11.746,63.94]
[1672724697368,5.92,11.76,11.746,30.0]
[1672724698731,30.0,11.759,11.745,29.0]
[1672724700197,30.0,11.759,11.744,223.938]
[1672724700404,63.87,11.758,11.744,159.988]
[1672724700938,5.91,11.76,11.745,93.94]
[1672724701128,30.0,11.76,11.745,93.94]
[1672724701339,35.88,11.76,11.745,93.94]
[1672724701568,99.74,11.76,11.745,29.0]
[1672724701778,35.88,11.76,11.746,63.94]
[1672724701992,30.0,11.76,11.747,30.0]
[1672724702302,48.3338,11.761,11.747,30.0]
[1672724702491,30.0,11.759,11.747,30.0]
[1672724703143,30.0,11.759,11.746,63.94]
[1672724703341,30.0,11.759,11.745,92.94]
[1672724703546,30.0,11.759,11.745,63.94]
[1672724703765,93.86,11.759,11.744,159.988]
[1672724704715,93.86,11.759,11.745,41.62563475]
[1672724704927,106.65723102,11.759,11.746,30.0]
[1672724705240,312.0,11.76,11.746,30.0]
[1672724705666,30.0,11.759,11.746,30.0]
[1672724705887,30.0,11.759,11.747,63.93]
[1672724706072,30.0,11.759,11.748,30.0]
[1672724706282,30.0,11.759,11.747,63.93]
[1672724706615,48.3338,11.761,11.746,135.56563475]
[1672724706803,48.3338,11.761,11.747,12.79723102]
[1672724707147,48.3338,11.761,11.748,63.92]
[1672724707334,48.3338,11.761,11.749,30.0]
[1672724707751,30.0,11.765,11.75,18.67723102]
[1672724707962,75.4108,11.765,11.753,41.62563475]
[1672724708186,45.4108,11.765,11.754,30.0]
[1672724708398,45.4108,11.765,11.755,63.89]
[1672724708590,23.3026,11.768,11.755,63.89]
[1672724708801,23.3026,11.768,11.755,105.51563475]
[1672724709427,23.3026,11.768,11.756,30.0]
[1672724709641,30.0,11.767,11.756,30.0]
[1672724710373,335.3026,11.768,11.756,30.0]
[1672724710588,23.3026,11.768,11.76,5.9]
[1672724710794,79.0523,11.772,11.76,5.9]
[1672724711022,30.0,11.772,11.76,5.9]
[1672724711977,30.0,11.772,11.76,4.9]
[1672724712186,30.0,11.77,11.76,4.9]
[1672724712396,30.0,11.77,11.758,30.0]
[1672724713235,93.79,11.772,11.758,93.87]
[1672724713236,30.0,11.772,11.758,93.87]
[1672724713432,30.0,11.772,11.758,71.62563475]
[1672724713635,30.0,11.772,11.759,63.86]
[1672724713850,30.0,11.772,11.76,30.0]
[1672724714288,30.0,11.772,11.759,63.86]
[1672724714684,93.79,11.772,11.758,135.49563475]
[1672724714898,30.0,11.772,11.758,71.62563475]
[1672724715650,389.6054,11.774,11.76,5.88]
[1672724715862,63.77,11.776,11.763,41.62563475]
[1672724716078,49.7663,11.778,11.764,63.84]
[1672724716266,49.7663,11.778,11.765,30.0]
[1672724716688,49.7663,11.778,11.766,63.83]
[1672724717544,30.0,11.777,11.766,63.83]
[1672724718071,30.0,11.777,11.765,30.0]
[1672724718274,30.0,11.777,11.766,63.83]
[1672724718806,342.0,11.777,11.766,63.83]
[1672724719019,342.0,11.777,11.764,63.84]
[1672724719432,342.0,11.777,11.765,30.0]
[1672724719967,49.7663,11.778,11.765,30.0]
[1672724720576,49.7663,11.778,11.766,63.83]
[1672724720801,49.7663,11.778,11.767,30.0]
[1672724721013,53.5901,11.781,11.767,30.0]
[1672724722889,365.5901,11.781,11.767,30.0]
[1672724723839,365.5901,11.781,11.766,63.83]
[1672724724044,365.5901,11.781,11.767,30.0]
[1672724724896,365.5901,11.781,11.765,141.8377]
[1672724725631,108.5092,11.78,11.765,141.8377]
[1672724725826,30.0,11.779,11.765,141.8377]
[1672724726042,138.5092,11.779,11.765,48.0077]
[1672724726681,138.5092,11.779,11.766,30.0]
[1672724728148,138.5092,11.779,11.765,167.0311]
[1672724730274,138.5092,11.779,11.766,30.0]
[1672724730791,138.5092,11.779,11.765,167.0311]
[1672724730985,450.5092,11.779,11.765,167.0311]
[1672724731195,450.5092,11.779,11.766,30.0]
[1672724731616,450.5092,11.779,11.765,167.0311]
[1672724732059,450.5092,11.779,11.765,230.8611]
[1672724732457,450.5092,11.779,11.766,30.0]
[1672724734050,450.5092,11.779,11.765,230.8611]
[1672724734605,450.5092,11.779,11.766,30.0]
[1672724734792,420.5092,11.779,11.766,30.0]
[1672724736044,108.5092,11.779,11.767,63.82]
[1672724736238,108.5092,11.779,11.768,30.0]
[1672724737104,30.0,11.778,11.766,93.83]
[1672724737409,30.0,11.778,11.767,30.0]
[1672724737608,108.5092,11.779,11.766,63.83]
[1672724737814,30.0,11.778,11.765,230.8611]
[1672724738021,30.0,11.778,11.765,167.0311]
[1672724738260,30.0,11.778,11.766,30.0]
[1672724738447,114.0293,11.778,11.766,30.0]
[1672724738662,30.0,11.781,11.768,30.0]
[1672724738885,30.0,11.781,11.769,83.81]
[1672724739097,342.0,11.781,11.769,83.81]
[1672724739414,342.0,11.781,11.769,20.0]
[1672724739615,342.0,11.781,11.769,83.81]
[1672724740242,342.0,11.781,11.769,20.0]
[1672724740651,342.0,11.781,11.77,63.8]
[1672724740652,30.0,11.781,11.77,63.8]
[1672724740869,30.0,11.781,11.771,20.0]
[1672724741489,30.0,11.781,11.77,20.0]
[1672724743639,342.0,11.781,11.77,20.0]
[1672724745623,30.0,11.781,11.77,20.0]
[1672724748022,69.68,11.78,11.766,24.8382]
[1672724748341,186.9926,11.78,11.766,24.8382]
[1672724748786,30.0,11.779,11.766,24.8382]
[1672724749094,63.76,11.778,11.766,24.8382]
[1672724749293,30.0,11.777,11.766,24.8382]
[1672724749504,30.0,11.775,11.766,24.8382]
[1672724749715,30.0,11.773,11.766,24.8382]
[1672724749917,30.0,11.773,11.764,155.9229]
[1672724750253,30.0,11.773,11.764,46.4149]
[1672724755422,30.0,11.773,11.757,93.88]
[1672724755743,30.0,11.773,11.739,429.3177898]
[1672724755744,30.0,11.771,11.755,227.284]
[1672724755931,30.0,11.769,11.756,30.0]
[1672724756770,342.0,11.769,11.755,227.284]
[1672724757409,342.0,11.769,11.756,30.0]
[1672724757716,342.0,11.769,11.755,163.394]
[1672724757926,459.1191,11.769,11.756,30.0]
[1672724758770,459.1191,11.769,11.755,163.394]
[1672724758981,459.1191,11.769,11.756,30.0]
[1672724759309,459.1191,11.769,11.755,163.394]
[1672724759720,459.1191,11.769,11.756,30.0]
[1672724760252,459.1191,11.769,11.755,163.394]
[1672724760566,459.1191,11.769,11.756,30.0]
[1672724760780,459.1191,11.769,11.755,163.394]
[1672724761826,30.0,11.767,11.756,30.0]
[1672724762447,30.0,11.767,11.755,163.394]
[1672724762653,30.0,11.767,11.756,30.0]
[1672724762877,140.6146,11.768,11.756,30.0]
[1672724763203,140.6146,11.768,11.755,163.394]
[1672724763608,30.0,11.766,11.755,163.394]
[1672724763933,63.83,11.765,11.755,163.394]
[1672724764148,30.0,11.764,11.755,163.394]
[1672724764455,30.0,11.764,11.755,46.8778]
[1672724765096,92.8052467,11.764,11.755,46.8778]
[1672724765289,30.0,11.762,11.755,46.8778]
[1672724765496,30.0,11.762,11.744,63.95]
[1672724765713,5.93,11.76,11.745,30.0]
[1672724765926,35.93,11.76,11.746,93.94]
[1672724766659,153.536,11.76,11.746,30.0]
[1672724766860,153.536,11.76,11.745,163.6417]
[1672724767073,30.0,11.758,11.745,163.6417]
[1672724767698,342.0,11.758,11.745,163.6417]
[1672724767914,451.7075,11.758,11.745,163.6417]
[1672724769819,30.0,11.756,11.745,163.6417]
[1672724771816,93.88,11.756,11.745,163.6417]
[1672724772162,30.0,11.756,11.745,163.6417]
[1672724772331,30.0,11.754,11.745,163.6417]
[1672724772541,30.0,11.754,11.745,48.9688]
[1672724772762,94.92078003,11.754,11.745,48.9688]
[1672724773186,5.89,11.75,11.738,63.98]
[1672724773404,5.89,11.75,11.733,223.3958]
[1672724773612,110.9197,11.749,11.734,30.0]
[1672724773820,110.9197,11.749,11.735,64.0]
[1672724774026,116.8552,11.748,11.734,157.3801]
[1672724774222,116.8552,11.748,11.735,30.0]
[1672724774648,116.8552,11.748,11.736,63.99]
[1672724774866,64.92078003,11.753,11.737,30.0]
[1672724775079,23.8277,11.754,11.738,157.5176]
[1672724775292,23.8277,11.754,11.739,157.5176]
[1672724775602,23.8277,11.754,11.74,99.85]
[1672724775815,335.8277,11.754,11.74,147.7168]
[1672724776215,335.8277,11.754,11.741,20.0]
[1672724776426,335.8277,11.754,11.743,30.0]
[1672724776637,312.0,11.754,11.744,63.95]
[1672724776864,116.8552,11.755,11.745,30.0]
[1672724777075,116.8552,11.755,11.746,63.94]
[1672724777283,116.8552,11.755,11.747,30.0]
[1672724777704,116.8552,11.755,11.746,63.94]
[1672724779061,116.8552,11.755,11.747,30.0]
[1672724779604,46.0172,11.756,11.747,30.0]
[1672724779806,46.0172,11.756,11.746,63.94]
[1672724781803,46.0172,11.756,11.747,30.0]
[1672724782000,46.0172,11.756,11.746,63.94]
[1672724782966,30.0,11.759,11.747,30.0]
[1672724783276,342.0,11.76,11.747,30.0]
[1672724783475,342.0,11.76,11.749,30.0]
[1672724783992,312.0,11.76,11.748,63.92]
[1672724784205,30.0,11.759,11.748,63.92]
[1672724784432,30.0,11.759,11.747,30.0]
[1672724784629,147.8107,11.759,11.747,30.0]
[1672724784845,312.0,11.76,11.747,30.0]
[1672724785047,312.0,11.76,11.749,30.0]
[1672724785257,312.0,11.76,11.75,83.91]
[1672724785686,312.0,11.76,11.748,63.92]
[1672724785896,30.0,11.759,11.746,227.0857]
[1672724786105,147.8107,11.759,11.746,163.1457]
[1672724787249,276.59148003,11.759,11.746,163.1457]
[1672724789163,71.39112041,11.758,11.746,163.1457]